bitfinex/quotes_BTCUSD_20251214
["timestamp","ask_amount","ask_price","bid_price","bid_amount"]
[1765727296565,0.02806371,89083.0,89081.0,0.0616858]
[1765727297512,0.03106371,89083.0,89081.0,0.0616858]
[1765727298146,0.03006371,89083.0,89081.0,0.0616858]
[1765727299158,0.02806371,89083.0,89081.0,0.28619829]
[1765727299586,0.02906371,89083.0,89081.0,0.28619829]
[1765727299783,0.001,89083.0,89082.0,0.06030065]
[1765727300617,0.03928831,89085.0,89082.0,0.06030065]
[1765727300973,0.001,89083.0,89082.0,0.06030065]
[1765727301176,0.03006371,89083.0,89082.0,0.06030065]
[1765727301539,0.02906371,89083.0,89082.0,0.06030065]
[1765727302137,0.25357343,89083.0,89082.0,0.06030065]
[1765727302365,0.01122573,89081.0,89078.0,0.01122611]
[1765727302567,0.03929007,89081.0,89078.0,0.01122611]
[1765727303497,0.02806434,89081.0,89078.0,0.01122611]
[1765727303797,0.04028919,89083.0,89079.0,0.01122599]
[1765727303980,0.03928919,89083.0,89079.0,0.23574418]
[1765727304138,0.03928919,89083.0,89080.0,0.08165143]
[1765727306290,0.26380059,89083.0,89080.0,0.08165143]
[1765727306521,0.23573688,89083.0,89080.0,0.08165143]
[1765727306911,0.22451428,89082.0,89080.0,0.08165143]
[1765727307081,0.02806434,89081.0,89078.0,0.01122611]
[1765727307284,0.03929007,89081.0,89078.0,0.01122611]
[1765727308762,0.02806434,89081.0,89078.0,0.01122611]
[1765727308961,0.03928964,89082.0,89079.0,0.01122599]
[1765727309280,0.04028964,89082.0,89079.0,0.03372599]
[1765727309481,0.02906403,89082.0,89080.0,0.03645994]
[1765727309685,0.02806403,89082.0,89080.0,0.03645994]
[1765727312004,0.02906403,89082.0,89080.0,0.03645994]
[1765727316292,0.2535779,89082.0,89080.0,0.03645994]
[1765727316450,0.22551387,89082.0,89080.0,0.03645994]
[1765727316654,0.2535779,89082.0,89081.0,0.05688465]
[1765727317554,0.2525779,89082.0,89081.0,0.05688465]
[1765727317753,0.22451387,89082.0,89081.0,0.05688465]
[1765727318057,0.22551387,89082.0,89081.0,0.05688465]
[1765727318906,0.001,89082.0,89081.0,0.05688465]
[1765727319109,0.02906403,89082.0,89081.0,0.05688465]
[1765727320757,0.03336403,89082.0,89081.0,0.05688465]
[1765727320954,0.23575638,89075.0,89071.0,0.00161287]
[1765727321221,0.23575638,89075.0,89068.0,0.01122737]
[1765727321222,0.0043,89072.0,89068.0,0.01122737]
[1765727321515,0.44126163,89081.0,89075.0,0.01122649]
[1765727321516,0.23574549,89080.0,89075.0,0.01122649]
[1765727321722,0.26381307,89079.0,89076.0,0.03152624]
[1765727321993,0.2357481,89079.0,89076.0,0.03152624]
[1765727322189,0.01122599,89079.0,89076.0,0.03152624]
[1765727322314,0.03929096,89079.0,89076.0,0.03152624]
[1765727323155,0.03929096,89079.0,89077.0,0.01745945]
[1765727324298,0.04029096,89079.0,89077.0,0.01745945]
[1765727324753,0.22452232,89078.0,89077.0,0.01745945]
[1765727325377,0.22452232,89078.0,89076.0,0.03152624]
[1765727326008,0.0043,89077.0,89076.0,0.03152624]
[1765727326234,0.22452736,89076.0,89075.0,8.243e-05]
[1765727326902,0.22455005,89067.0,89066.0,0.01166]
[1765727327040,0.22455005,89067.0,89025.0,0.08064124]
[1765727327041,0.22462067,89039.0,89025.0,0.08064124]
[1765727327237,0.22462067,89039.0,89021.0,0.01166]
[1765727327238,0.24234067,89039.0,89021.0,0.01166]
[1765727327652,0.24234067,89039.0,89023.0,0.0225]
[1765727328051,0.24234067,89039.0,89025.0,0.01123279]
[1765727328231,0.24234067,89039.0,89038.0,0.0007864]
[1765727328633,0.24434067,89039.0,89038.0,0.0007864]
[1765727329645,0.24534067,89039.0,89038.0,0.0007864]
[1765727330246,0.22762067,89039.0,89038.0,0.0007864]
[1765727330450,0.24534067,89039.0,89038.0,0.0007864]
[1765727344965,0.02072,89039.0,89038.0,0.0007864]
[1765727345301,0.04879758,89039.0,89038.0,0.0007864]
[1765727345710,0.04879758,89039.0,89038.0,0.0267205]
[1765727346952,0.02072,89039.0,89038.0,0.0267205]
[1765727347357,0.003,89039.0,89038.0,0.04129927]
[1765727347810,0.01123015,89046.0,89038.0,0.05253042]
[1765727347956,0.23584842,89041.0,89038.0,0.00239927]
[1765727348158,0.22462007,89040.0,89038.0,0.00239927]
[1765727348370,0.22462007,89040.0,89038.0,0.03083837]
[1765727348756,0.22462007,89040.0,89038.0,0.0017864]
[1765727348757,0.02807758,89039.0,89038.0,0.0017864]
[1765727349001,0.02807758,89039.0,89038.0,0.0007864]
[1765727349393,0.02807758,89039.0,89038.0,0.0017864]
[1765727349954,0.02807758,89039.0,89038.0,0.0007864]
[1765727350310,0.02907758,89039.0,89038.0,0.0007864]
[1765727351127,0.03007758,89039.0,89038.0,0.0007864]
[1765727354064,0.002,89039.0,89038.0,0.0007864]
[1765727355609,0.03007758,89039.0,89038.0,0.0007864]
[1765727366942,0.02907758,89039.0,89038.0,0.0007864]
[1765727367144,0.02807758,89039.0,89038.0,0.0007864]
[1765727367406,0.03007758,89039.0,89038.0,0.0017864]
[1765727367610,0.03207758,89039.0,89038.0,0.0017864]
[1765727395611,0.004,89039.0,89038.0,0.0017864]
[1765727395811,0.04979758,89039.0,89038.0,0.0017864]
[1765727397055,0.03207758,89039.0,89038.0,0.0017864]
[1765727397256,0.004,89039.0,89038.0,0.0407464]
[1765727397453,0.004,89039.0,89038.0,0.0505746]
[1765727398738,0.002,89039.0,89038.0,0.05218747]
[1765727399562,0.01123065,89042.0,89039.0,0.2358517]
[1765727399807,0.01123065,89042.0,89039.0,0.2589517]
[1765727400013,0.01123052,89043.0,89041.0,0.01192]
[1765727400221,0.01123052,89043.0,89042.0,0.05550255]
[1765727400664,0.01123065,89042.0,89039.0,0.00161287]
[1765727400875,0.23584565,89042.0,89039.0,0.00161287]
[1765727401082,0.01123065,89042.0,89039.0,0.0138439]
[1765727401434,0.01123065,89042.0,89039.0,0.0128439]
[1765727402262,0.03930728,89042.0,89039.0,0.0128439]
[1765727402474,0.03930728,89042.0,89040.0,0.05533409]
[1765727403155,0.26392205,89042.0,89040.0,0.05533409]
[1765727403294,0.23584542,89042.0,89040.0,0.05533409]
[1765727403495,0.22461814,89040.0,89039.0,0.00161287]
[1765727404688,0.23584542,89042.0,89039.0,0.01747287]
[1765727404859,0.23584542,89042.0,89039.0,0.04057287]
[1765727404860,0.22461756,89041.0,89039.0,0.04057287]
[1765727406428,0.01123065,89042.0,89039.0,0.04057287]
[1765727407498,0.01123065,89042.0,89040.0,0.0231]
[1765727407705,0.01123065,89042.0,89040.0,0.03953007]
[1765727415431,0.01123065,89042.0,89040.0,0.01643007]
[1765727415744,0.01123065,89042.0,89039.0,0.0128439]
[1765727415939,0.03930728,89042.0,89039.0,0.0128439]
[1765727416599,0.03930728,89042.0,89039.0,0.0359439]
[1765727417589,0.26392241,89042.0,89039.0,0.02471287]
[1765727417738,0.23584578,89042.0,89039.0,0.02471287]
[1765727417937,0.23584578,89042.0,89040.0,0.03055658]
[1765727423997,0.23584578,89042.0,89041.0,0.02778]
[1765727425292,0.23684578,89042.0,89041.0,0.02778]
[1765727427241,0.23684578,89042.0,89041.0,0.01192]
[1765727429441,0.23684578,89042.0,89040.0,0.03055658]
[1765727429641,0.22461814,89040.0,89039.0,0.00161287]
[1765727430497,0.22461814,89040.0,89038.0,0.0007864]
[1765727431152,0.03372577,89039.0,89038.0,0.0007864]
[1765727432311,0.06180335,89039.0,89038.0,0.0007864]
[1765727432538,0.06180335,89039.0,89038.0,0.0017864]
[1765727432738,0.06380335,89039.0,89038.0,0.0017864]
[1765727432964,0.06580335,89039.0,89038.0,0.0017864]
[1765727460167,0.004,89039.0,89038.0,0.0398064]
[1765727460378,0.004,89039.0,89038.0,0.04845137]
[1765727461292,0.002,89039.0,89038.0,0.04845137]
[1765727461484,0.22461996,89040.0,89038.0,0.04745137]
[1765727461922,0.22461996,89040.0,89038.0,0.04845137]
[1765727462479,0.22461996,89040.0,89038.0,0.02565137]
[1765727462690,0.22461996,89040.0,89039.0,0.00722951]
[1765727464479,0.22461996,89040.0,89039.0,0.02244951]
[1765727464684,0.22561996,89040.0,89039.0,0.04524951]
[1765727465769,0.001,89040.0,89039.0,0.04686238]
[1765727468570,0.001,89040.0,89039.0,0.08058022]
[1765727469570,0.001,89040.0,89039.0,0.08158022]
[1765727470063,0.23581949,89052.0,89046.0,0.01123015]
[1765727470064,0.01122964,89050.0,89046.0,0.01123015]
[1765727470273,0.01122964,89050.0,89047.0,0.02583097]
[1765727470591,0.01122964,89050.0,89047.0,0.06072097]
[1765727470787,0.2358165,89053.0,89049.0,0.23981544]
[1765727470988,0.01122914,89054.0,89052.0,0.01522]
[1765727471191,0.24229365,89058.0,89052.0,0.01522]
[1765727471192,0.01122876,89057.0,89053.0,0.07343488]
[1765727471448,0.01122876,89057.0,89053.0,0.31682912]
[1765727471675,0.01122876,89057.0,89056.0,0.01522]
[1765727471914,0.23579852,89060.0,89056.0,0.02731]
[1765727471915,0.01122838,89060.0,89056.0,0.02731]
[1765727472116,0.01122838,89060.0,89059.0,0.01522]
[1765727472511,0.01122838,89060.0,89059.0,0.03802]
[1765727473307,0.23579111,89062.0,89059.0,0.03802]
[1765727473647,0.01122813,89062.0,89061.0,0.02731]
[1765727473831,0.01122813,89062.0,89061.0,0.05011]
[1765727474037,0.01122813,89062.0,89061.0,0.11194673]
[1765727474816,0.01222813,89062.0,89061.0,0.11194673]
[1765727475503,0.01322813,89062.0,89061.0,0.11194673]
[1765727475870,0.002,89062.0,89061.0,0.11194673]
[1765727477066,0.001,89062.0,89061.0,0.11194673]
[1765727477275,0.23578611,89064.0,89061.0,0.11194673]
[1765727477501,0.23578611,89064.0,89062.0,0.07789905]
[1765727477919,0.23578611,89064.0,89063.0,0.03802]
[1765727478157,0.01122762,89066.0,89063.0,0.03802]
[1765727478377,0.01122762,89066.0,89065.0,0.01522]
[1765727478821,0.01122762,89066.0,89065.0,0.03802]
[1765727479035,0.01122762,89066.0,89065.0,0.10412825]
[1765727479681,0.00011569,89066.0,89065.0,0.10412825]
[1765727480104,0.00111569,89066.0,89065.0,0.10412825]
[1765727480888,0.00211569,89066.0,89065.0,0.10412825]
[1765727481090,0.00211569,89066.0,89065.0,0.32868335]
[1765727481344,0.00211569,89066.0,89065.0,0.33029622]
[1765727482329,0.00111569,89066.0,89065.0,0.33029622]
[1765727482907,0.00011569,89066.0,89065.0,0.33029622]
[1765727483301,0.00011569,89066.0,89065.0,0.33129622]
[1765727489705,0.00011569,89066.0,89065.0,0.34263622]
[1765727497746,0.00011569,89066.0,89065.0,0.11808112]
[1765727497921,0.00011569,89066.0,89065.0,0.12012112]
[1765727499327,0.00011569,89066.0,89065.0,0.05401287]
[1765727499719,0.00011569,89066.0,89065.0,0.02917287]
[1765727499922,0.00011569,89066.0,89065.0,0.05401287]
[1765727506721,0.00011569,89066.0,89065.0,0.02478]
[1765727507124,0.00011569,89066.0,89058.0,0.00872]
[1765727507125,0.01122825,89061.0,89058.0,0.00872]
[1765727507331,0.22456933,89060.0,89058.0,0.01481888]
[1765727507863,0.22456933,89060.0,89059.0,0.01606]
[1765727508677,0.22456933,89060.0,89059.0,0.0409]
[1765727509989,0.22456933,89060.0,89059.0,0.0419]
[1765727510405,0.22456933,89060.0,89059.0,0.002]
[1765727511047,0.22456933,89060.0,89059.0,0.0429]
[1765727512648,0.26431933,89060.0,89059.0,0.002]
[1765727512874,0.22456933,89060.0,89059.0,0.002]
[1765727513286,0.00011569,89066.0,89064.0,0.2245567]
[1765727513598,0.00011569,89066.0,89065.0,0.08099931]
[1765727514404,0.00011569,89066.0,89065.0,0.03006931]
[1765727514732,0.00111569,89066.0,89065.0,0.03006931]
[1765727516151,0.00211569,89066.0,89065.0,0.03006931]
[1765727520350,0.00211569,89066.0,89065.0,0.04009931]
[1765727520930,0.00211569,89066.0,89065.0,0.07897931]
[1765727521738,0.00211569,89066.0,89065.0,0.05543931]
[1765727523174,0.01122775,89065.0,89062.0,0.01003]
[1765727523648,0.01122825,89061.0,89058.0,0.01078]
[1765727523837,0.23579376,89061.0,89058.0,0.01078]
[1765727524033,0.01122863,89058.0,89055.0,0.01078]
[1765727524286,0.01122863,89058.0,89053.0,0.01122926]
[1765727524520,0.01122876,89057.0,89054.0,0.03476914]
[1765727524722,0.01122876,89057.0,89054.0,0.25935148]
[1765727524855,0.23580338,89058.0,89054.0,0.25935148]
[1765727525060,0.01284112,89061.0,89054.0,0.25935148]
[1765727525061,0.01122838,89060.0,89056.0,0.23580635]
[1765727525261,0.01122851,89059.0,89056.0,0.23580635]
[1765727525518,0.01122851,89059.0,89056.0,0.01122888]
[1765727525638,0.01122851,89059.0,89055.0,0.03476901]
[1765727526566,0.01122851,89059.0,89055.0,0.03576901]
[1765727526767,0.01122851,89059.0,89056.0,0.001]
[1765727527030,0.01122851,89059.0,89055.0,0.03476901]
[1765727527237,0.01122851,89059.0,89055.0,0.09558652]
[1765727527469,0.01122851,89059.0,89055.0,0.07304652]
[1765727528371,0.01122851,89059.0,89055.0,0.07404652]
[1765727528536,0.01122851,89059.0,89055.0,0.01322901]
[1765727528746,0.01122851,89059.0,89055.0,0.03576901]
[1765727529252,0.01122851,89059.0,89055.0,0.03476901]
[1765727529850,0.01122851,89059.0,89055.0,0.25934738]
[1765727530046,0.01122851,89059.0,89056.0,0.02354]
[1765727530245,0.01122851,89059.0,89056.0,0.04197194]
[1765727530703,0.23580041,89059.0,89056.0,0.01843194]
[1765727531194,0.22457447,89058.0,89056.0,0.01843194]
[1765727533851,0.2358031,89058.0,89054.0,0.01122914]
[1765727534061,0.2358031,89058.0,89054.0,0.03476914]
[1765727535442,0.22457943,89056.0,89054.0,0.001]
[1765727536475,0.22457943,89056.0,89054.0,0.002]
[1765727536917,0.22457943,89056.0,89054.0,0.001]
[1765727537332,0.22457943,89056.0,89054.0,0.002]
[1765727537944,0.22457943,89056.0,89054.0,0.001]
[1765727538351,0.22457943,89056.0,89054.0,0.002]
[1765727538547,0.22457943,89056.0,89055.0,0.01122939]
[1765727539355,0.24037943,89056.0,89054.0,0.001]
[1765727539563,0.02442,89055.0,89054.0,0.001]
[1765727539785,0.04915,89055.0,89054.0,0.001]
[1765727540051,0.05364617,89055.0,89054.0,0.001]
[1765727540657,0.05364617,89055.0,89038.0,0.0004]
[1765727540658,0.01123078,89041.0,89038.0,0.0004]
[1765727540862,0.24664067,89039.0,89038.0,0.0004]
[1765727541379,0.28178067,89039.0,89038.0,0.0004]
[1765727542046,0.28178067,89039.0,89038.0,0.0007864]
[1765727542237,0.28378067,89039.0,89038.0,0.0017864]
[1765727543467,0.28578067,89039.0,89038.0,0.0017864]
[1765727553838,0.23903067,89039.0,89038.0,0.0017864]
[1765727554018,0.004,89039.0,89038.0,0.01007366]
[1765727554381,0.004,89039.0,89038.0,0.0017864]
[1765727557738,0.03207758,89039.0,89038.0,0.0017864]
[1765727558167,0.08398758,89039.0,89038.0,0.0017864]
[1765727560461,0.07998758,89039.0,89038.0,0.0017864]
[1765727560666,0.04738958,89039.0,89038.0,0.0017864]
[1765727560868,0.05272035,89039.0,89038.0,0.0017864]
[1765727566766,0.01672077,89039.0,89038.0,0.0017864]
[1765727566941,0.00533077,89039.0,89038.0,0.0017864]
[1765727571296,0.00533077,89039.0,89038.0,0.00802055]
[1765727577490,0.00533077,89039.0,89038.0,0.0017864]
[1765727577491,0.02088077,89039.0,89038.0,0.0017864]
[1765727577795,0.04487077,89039.0,89038.0,0.0017864]
[1765727578601,0.02088077,89039.0,89038.0,0.0017864]
[1765727583120,0.04487077,89039.0,89038.0,0.0017864]
[1765727584195,0.02088077,89039.0,89038.0,0.0017864]
[1765727584641,0.00533077,89039.0,89038.0,0.0017864]
[1765727585908,0.02088077,89039.0,89038.0,0.0017864]
[1765727586119,0.04487077,89039.0,89038.0,0.0017864]
[1765727589714,0.05109077,89039.0,89038.0,0.0017864]
[1765727596679,0.01155077,89039.0,89038.0,0.0017864]
[1765727597341,0.00533077,89039.0,89038.0,0.0017864]
[1765727601125,0.00533077,89039.0,89038.0,0.0510664]
[1765727601298,0.00533077,89039.0,89038.0,0.08408443]
[1765727601986,0.00533077,89039.0,89038.0,0.06147443]
[1765727602366,0.00533077,89039.0,89038.0,0.08408443]
[1765727603348,0.00533077,89039.0,89038.0,0.06147443]
[1765727603629,0.00533077,89039.0,89038.0,0.0284564]
[1765727604120,0.22462024,89040.0,89038.0,0.0284564]
[1765727605250,0.22462024,89040.0,89038.0,0.0274564]
[1765727605506,0.22562024,89040.0,89038.0,0.0274564]
[1765727605709,0.22762024,89040.0,89038.0,0.0274564]
[1765727606430,0.22762024,89040.0,89039.0,0.03291806]
[1765727607256,0.002,89040.0,89039.0,0.03291806]
[1765727607659,0.004,89040.0,89039.0,0.03291806]
[1765727607866,0.002,89040.0,89039.0,0.03291806]
[1765727608144,0.004,89040.0,89039.0,0.03291806]
[1765727611430,0.004,89040.0,89039.0,0.07097806]
[1765727612587,0.002,89040.0,89039.0,0.07097806]
[1765727612836,0.002,89040.0,89039.0,0.03291806]
[1765727613485,0.22461789,89041.0,89039.0,0.03291806]
[1765727613727,0.22462067,89039.0,89038.0,0.0007864]
[1765727615077,0.22462067,89039.0,89038.0,0.0017864]
[1765727616591,0.22462067,89039.0,89038.0,0.0173264]
[1765727616861,0.22462067,89039.0,89038.0,0.0398464]
[1765727617250,0.22462067,89039.0,89038.0,0.0017864]
[1765727618451,0.22462063,89040.0,89038.0,0.05800402]
[1765727618817,0.22462063,89040.0,89038.0,0.08052402]
[1765727619151,0.01122977,89049.0,89045.0,0.01123027]
[1765727619350,0.01122977,89049.0,89048.0,0.01554]
[1765727619351,0.22459544,89049.0,89048.0,0.01554]
[1765727619561,0.22459544,89049.0,89048.0,0.02149508]
[1765727619707,0.22459544,89049.0,89048.0,0.04401508]
[1765727620588,0.22459544,89049.0,89048.0,0.00595508]
[1765727620589,0.26288544,89049.0,89048.0,0.00595508]
[1765727620766,0.01123052,89043.0,89040.0,0.0112309]
[1765727621273,0.2246201,89040.0,89038.0,0.0017864]
[1765727621731,0.2246201,89040.0,89038.0,0.0007864]
[1765727622432,0.23584847,89041.0,89038.0,0.0007864]
[1765727622882,0.23584847,89041.0,89038.0,0.0233064]
[1765727623567,0.23584847,89041.0,89038.0,0.0243064]
[1765727623781,0.23584847,89041.0,89039.0,0.0561333]
[1765727624318,0.23584847,89041.0,89039.0,0.0786533]
[1765727624966,0.23584847,89041.0,89040.0,0.02252]
[1765727626487,0.01123078,89041.0,89040.0,0.02252]
[1765727626706,0.01123078,89041.0,89040.0,0.12110292]
[1765727626832,0.01123065,89042.0,89040.0,0.12110292]
[1765727627032,0.01123052,89043.0,89041.0,0.04972]
[1765727627236,0.01123052,89043.0,89042.0,0.01554]
[1765727627462,0.01123052,89043.0,89042.0,0.10966323]
[1765727627931,0.23583749,89045.0,89042.0,0.10966323]
[1765727628138,0.01123027,89045.0,89044.0,0.01554]
[1765727628372,0.22461814,89040.0,89038.0,0.0007864]
[1765727628571,0.01123078,89041.0,89039.0,0.00831709]
[1765727630243,0.01123078,89041.0,89040.0,0.03806]
[1765727631691,0.23584375,89042.0,89040.0,0.03806]
[1765727631692,0.01123065,89042.0,89040.0,0.03806]
[1765727631946,0.0112304,89044.0,89041.0,0.03806]
[1765727632216,0.0112304,89044.0,89043.0,0.01554]
[1765727632416,0.0112304,89044.0,89043.0,0.09472347]
[1765727633567,0.0122304,89044.0,89043.0,0.09472347]
[1765727633766,0.0132304,89044.0,89043.0,0.09472347]
[1765727634522,0.002,89044.0,89043.0,0.09472347]
[1765727635914,0.002,89044.0,89043.0,0.07220347]
[1765727638581,0.002,89044.0,89043.0,0.05666347]
[1765727656233,0.002,89044.0,89039.0,0.00831709]
[1765727656234,0.22461814,89040.0,89039.0,0.00831709]
[1765727657071,0.26343814,89040.0,89039.0,0.00831709]
[1765727657224,0.26343814,89040.0,89038.0,0.0007864]
[1765727657428,0.23995814,89040.0,89038.0,0.0007864]
[1765727657630,0.22461814,89040.0,89038.0,0.0007864]
[1765727659587,0.03882,89039.0,89038.0,0.0007864]
[1765727661488,0.01634,89039.0,89038.0,0.0007864]
[1765727661681,0.03982,89039.0,89038.0,0.0007864]
[1765727662660,0.04182,89039.0,89038.0,0.0007864]
[1765727664402,0.15404652,89039.0,89038.0,0.0007864]
[1765727665207,0.1652802,89039.0,89038.0,0.0007864]
[1765727667019,0.17061097,89039.0,89038.0,0.0007864]
[1765727675911,0.05838445,89039.0,89038.0,0.0007864]
[1765727676879,0.03490445,89039.0,89038.0,0.0007864]
[1765727677017,0.05262445,89039.0,89038.0,0.0007864]
[1765727677454,0.07626445,89039.0,89038.0,0.0007864]
[1765727679874,0.05854445,89039.0,89038.0,0.0007864]
[1765727680158,0.07626445,89039.0,89038.0,0.0007864]
[1765727681442,0.18849097,89039.0,89038.0,0.0007864]
[1765727683989,0.01423368,89039.0,89038.0,0.0007864]
[1765727684193,0.02072,89039.0,89038.0,0.0007864]
[1765727684435,0.03013,89039.0,89038.0,0.0007864]
[1765727685837,0.02072,89039.0,89038.0,0.0007864]
[1765727686037,0.02072,89039.0,89038.0,0.0313883]
[1765727686286,0.01241,89039.0,89038.0,0.0475183]
[1765727686483,0.003,89039.0,89038.0,0.0713583]
[1765727686671,0.003,89039.0,89038.0,0.0407564]
[1765727691039,0.002,89039.0,89038.0,0.0407564]
[1765727691409,0.01123078,89041.0,89038.0,0.05198755]
[1765727691615,0.01123078,89041.0,89039.0,0.02384]
[1765727692009,0.01123078,89041.0,89040.0,0.05477672]
[1765727693229,0.22461814,89040.0,89038.0,0.0017864]
[1765727693434,0.22461814,89040.0,89038.0,0.0007864]
[1765727694262,0.22461814,89040.0,89038.0,0.0017864]
[1765727694779,0.23584799,89041.0,89038.0,0.0017864]
[1765727695640,0.22461972,89040.0,89038.0,0.0256264]
[1765727695843,0.22461972,89040.0,89039.0,0.05204166]
[1765727697455,0.23584587,89042.0,89039.0,0.09076166]
[1765727697456,0.01123065,89042.0,89039.0,0.09076166]
[1765727697644,0.01123065,89042.0,89041.0,0.02759]
[1765727699693,0.01123065,89042.0,89041.0,0.05075]
[1765727699873,0.01123065,89042.0,89041.0,0.1131187]
[1765727701813,0.01656142,89042.0,89041.0,0.0623687]
[1765727702237,0.01123078,89041.0,89038.0,0.0007864]
[1765727702574,0.22461977,89040.0,89038.0,0.0007864]
[1765727703406,0.01123078,89041.0,89038.0,0.0017864]
[1765727703583,0.01123078,89041.0,89038.0,0.03517755]
[1765727704045,0.01123078,89041.0,89038.0,0.26080045]
[1765727704240,0.01123078,89041.0,89039.0,0.07671162]
[1765727705301,0.23584801,89041.0,89039.0,0.07671162]
[1765727705504,0.01123078,89041.0,89039.0,0.07671162]
[1765727705714,0.23584791,89041.0,89039.0,0.07671162]
[1765727705912,0.23584791,89041.0,89038.0,0.0239464]
[1765727706843,0.23584791,89041.0,89038.0,0.0007864]
[1765727707263,0.22461973,89040.0,89038.0,0.0239464]
[1765727707443,0.22461973,89040.0,89038.0,0.0249464]
[1765727708821,0.01123078,89041.0,89038.0,0.0239464]
[1765727709046,0.01123078,89041.0,89039.0,0.05414881]
[1765727709442,0.23584788,89041.0,89039.0,0.05414881]
[1765727713185,0.23584788,89041.0,89038.0,0.0007864]
[1765727714359,0.22461971,89040.0,89038.0,0.0007864]
[1765727715381,0.22461971,89040.0,89038.0,0.0017864]
[1765727715569,0.22461971,89040.0,89038.0,0.0007864]
[1765727715772,0.01123078,89041.0,89038.0,0.0007864]
[1765727715989,0.01123078,89041.0,89038.0,0.07815705]
[1765727716197,0.01123078,89041.0,89038.0,0.0893882]
[1765727716846,0.01123078,89041.0,89038.0,0.0883882]
[1765727717055,0.01123078,89041.0,89038.0,0.31400986]
[1765727717787,0.01656142,89042.0,89038.0,0.31400986]
[1765727717986,0.01656142,89042.0,89039.0,0.06276596]
[1765727719902,0.01656142,89042.0,89039.0,0.06512618]
[1765727720046,0.01656142,89042.0,89039.0,0.06276596]
[1765727721006,0.2411763,89042.0,89039.0,0.06276596]
[1765727721187,0.23584553,89042.0,89039.0,0.06276596]
[1765727722518,0.22461814,89040.0,89039.0,0.06276596]
[1765727723116,0.23584553,89042.0,89039.0,0.06276596]
[1765727723545,0.22461732,89041.0,89039.0,0.06276596]
[1765727724980,0.22462067,89039.0,89038.0,0.0007864]
[1765727725831,0.26394067,89039.0,89038.0,0.0007864]
[1765727726233,0.26394067,89039.0,89038.0,0.00317711]
[1765727726629,0.26394067,89039.0,89038.0,0.00417711]
[1765727727035,0.22462067,89039.0,89038.0,0.00417711]
[1765727727280,0.26409067,89039.0,89038.0,0.03155118]
[1765727727975,0.26409067,89039.0,89038.0,0.03055118]
[1765727728784,0.26409067,89039.0,89038.0,0.00317711]
[1765727729164,0.22462067,89039.0,89038.0,0.00317711]
[1765727729594,0.23979067,89039.0,89038.0,0.00317711]
[1765727729820,0.22462067,89039.0,89038.0,0.00317711]
[1765727730520,0.26409067,89039.0,89038.0,0.00317711]
[1765727731958,0.26409067,89039.0,89038.0,0.02820495]
[1765727734092,0.26409067,89039.0,89038.0,0.00317711]
[1765727735321,0.22462067,89039.0,89038.0,0.00317711]
[1765727735686,0.23979067,89039.0,89038.0,0.00317711]
[1765727735882,0.26409067,89039.0,89038.0,0.00317711]
[1765727736435,0.22462067,89039.0,89038.0,0.00317711]
[1765727736909,0.22462067,89039.0,89038.0,0.02827259]
[1765727737044,0.2358481,89041.0,89038.0,0.02827259]
[1765727737243,0.22462026,89040.0,89038.0,0.02588188]
[1765727737447,0.23584738,89041.0,89038.0,0.02588188]
[1765727738488,0.2246203,89040.0,89038.0,0.02588188]
[1765727738684,0.2246203,89040.0,89039.0,0.02848909]
[1765727740033,0.2256203,89040.0,89039.0,0.02848909]
[1765727740915,0.2266203,89040.0,89039.0,0.02848909]
[1765727744332,0.002,89040.0,89039.0,0.02848909]
[1765727744716,0.002,89040.0,89039.0,0.03084931]
[1765727753527,0.002,89040.0,89039.0,0.00236022]
[1765727755989,0.04047,89040.0,89039.0,0.00236022]
[1765727756810,0.04580077,89040.0,89039.0,0.00236022]
[1765727760357,0.05446077,89040.0,89039.0,0.00236022]
[1765727761002,0.09914839,89040.0,89039.0,0.00236022]
[1765727761207,0.10247916,89040.0,89039.0,0.00236022]
[1765727761568,0.10247916,89040.0,89039.0,0.00436022]
[1765727761963,0.10247916,89040.0,89039.0,0.00636022]
[1765727765988,0.39317916,89040.0,89039.0,0.00636022]
[1765727766192,0.38784839,89040.0,89039.0,0.00636022]
[1765727767351,0.38784839,89040.0,89039.0,0.00236022]
[1765727767782,0.38784839,89040.0,89039.0,0.00336022]
[1765727770694,0.4046661,89040.0,89039.0,0.00336022]
[1765727771891,0.38784839,89040.0,89039.0,0.00336022]
[1765727772104,0.40556839,89040.0,89039.0,0.00336022]
[1765727772950,0.40556839,89040.0,89039.0,0.00236022]
[1765727773160,0.40556839,89040.0,89039.0,0.00436022]
[1765727773414,0.40556839,89040.0,89039.0,0.00536022]
[1765727773619,0.40556839,89040.0,89039.0,0.00336022]
[1765727778216,0.40056839,89040.0,89039.0,0.00336022]
[1765727784525,0.33283,89040.0,89039.0,0.00336022]
[1765727784735,0.03683,89040.0,89039.0,0.00336022]
[1765727784949,0.01399077,89040.0,89039.0,0.00336022]
[1765727785168,0.02638,89040.0,89039.0,0.00336022]
[1765727785536,0.01123078,89041.0,89039.0,0.02681022]
[1765727785737,0.01123078,89041.0,89040.0,0.00736196]
[1765727785936,0.01123078,89041.0,89040.0,0.0096917]
[1765727786827,0.01123078,89041.0,89040.0,0.0488817]
[1765727787037,0.01123078,89041.0,89040.0,0.0508817]
[1765727787529,0.01123078,89041.0,89040.0,0.0282517]
[1765727787736,0.01123078,89041.0,89040.0,0.0262517]
[1765727788288,0.27315065,89042.0,89040.0,0.0508817]
[1765727788491,0.27315065,89042.0,89041.0,0.08488587]
[1765727788698,0.27315065,89042.0,89041.0,0.10751587]
[1765727789081,0.27315065,89042.0,89041.0,0.10981512]
[1765727789261,0.26192,89042.0,89041.0,0.08718512]
[1765727789467,0.01772,89042.0,89041.0,0.08718512]
[1765727789766,0.43317173,89051.0,89048.0,0.01122989]
[1765727789999,0.01122926,89053.0,89050.0,0.02266964]
[1765727790206,0.01122926,89053.0,89050.0,0.02469458]
[1765727790420,0.01122926,89053.0,89050.0,0.02266964]
[1765727790968,0.01772,89054.0,89050.0,0.26989059]
[1765727791171,0.02894914,89054.0,89051.0,0.06404835]
[1765727791715,0.02894914,89054.0,89051.0,0.05281883]
[1765727791931,0.25353413,89054.0,89051.0,0.05281883]
[1765727793211,0.25453413,89054.0,89051.0,0.05281883]
[1765727794655,0.22458788,89052.0,89051.0,0.05281883]
[1765727795038,0.001,89054.0,89051.0,0.08060835]
[1765727795244,0.001,89054.0,89053.0,0.01656]
[1765727795452,0.23740649,89061.0,89055.0,0.01122901]
[1765727795690,0.23740649,89061.0,89060.0,0.028]
[1765727796287,0.23740649,89061.0,89060.0,0.05063]
[1765727796712,0.00161287,89061.0,89060.0,0.05063]
[1765727796940,0.00161287,89061.0,89060.0,0.1062228]
[1765727798092,0.011228,89063.0,89060.0,0.11745118]
[1765727798323,0.011228,89063.0,89061.0,0.02263]
[1765727798520,0.011228,89063.0,89062.0,0.01656]
[1765727798738,0.011228,89063.0,89062.0,0.07771152]